fUSD/lending_fUSD_20251122
["ID","MTS","AMOUNT","RATE_DAILY","PERIOD"]
[394649804,1763809840265,-667.57,0.0001726,2]
[394649806,1763809840275,-500.0,0.0001726,2]
[394649808,1763809840283,-644.26,0.0001726,2]
[394649810,1763809840292,-500.0,0.0001726,2]
[394649812,1763809840301,-500.0,0.0001726,2]
[394649814,1763809840310,-188.54,0.00017436,2]
[394649815,1763809840319,-500.0,0.00017447,2]
[394649817,1763809840328,-500.0,0.00017447,2]
[394649819,1763809840336,-500.0,0.00017447,2]
[394649821,1763809840345,-500.0,0.00017447,2]
[394649823,1763809840354,-603.58,0.00017447,2]
[394649825,1763809840368,-500.0,0.00017447,2]
[394649827,1763809840377,-500.0,0.00017447,2]
[394649829,1763809840388,-500.0,0.00017447,2]
[394649831,1763809840398,-540.19,0.00017447,2]
[394649833,1763809840407,-500.0,0.00017447,2]
[394649835,1763809840418,-500.0,0.00017447,2]
[394649837,1763809840428,-500.0,0.00017447,2]
[394649839,1763809840438,-2712.78639862,0.0001745,2]
[394649842,1763809840447,-2000.0,0.000175,2]
[394649843,1763809840456,-500.0,0.00017534,2]
[394649845,1763809840465,-500.0,0.00017534,2]
[394649848,1763809840475,-500.0,0.00017534,2]
[394649850,1763809840484,-500.0,0.00017534,2]
[394649852,1763809840493,-500.0,0.00017534,2]
[394649853,1763809840502,-500.0,0.00017534,2]
[394649854,1763809840511,-500.0,0.00017534,2]
[394649855,1763809840520,-500.0,0.00017534,2]
[394649856,1763809840529,-607.58,0.00017534,2]
[394649857,1763809840539,-500.0,0.00017534,2]
[394649858,1763809840548,-281.30781237,0.00017534,2]
[394649859,1763809840558,-500.0,0.00017534,2]
[394649860,1763809840567,-530.35,0.00017534,2]
[394649861,1763809840576,-500.0,0.00017534,2]
[394649862,1763809840585,-620.87,0.00017534,2]
[394649863,1763809840594,-641.27,0.00017534,2]
[394649864,1763809840603,-500.0,0.00017534,2]
[394649865,1763809840617,-500.0,0.00017534,2]
[394649866,1763809840627,-500.0,0.00017534,2]
[394649867,1763809840636,-550.28,0.00017534,2]
[394649868,1763809840646,-649.3,0.00017534,2]
[394649869,1763809840655,-500.0,0.00017534,2]
[394649870,1763809840664,-500.0,0.00017534,2]
[394649871,1763809840674,-500.0,0.00017534,2]
[394649872,1763809840683,-500.0,0.00017534,2]
[394649873,1763809840692,-500.0,0.00017534,2]
[394649874,1763809840701,-500.0,0.00017534,2]
[394649875,1763809840710,-500.0,0.00017534,2]
[394649876,1763809840720,-2259.16,0.00017534,2]
[394649877,1763809840729,-500.0,0.00017534,2]
[394649878,1763809840738,-667.57,0.00017534,2]
[394649879,1763809840748,-500.0,0.00017534,2]
[394649880,1763809840757,-644.26,0.00017534,2]
[394649881,1763809840766,-500.0,0.00017534,2]
[394649882,1763809840775,-500.0,0.00017534,2]
[394649883,1763809840785,-500.0,0.00017554,2]
[394649884,1763809840794,-479.0,0.00017555,2]
[394649885,1763809840805,-420.0,0.00017595,2]
[394649886,1763809840815,-500.0,0.00017721,2]
[394649887,1763809840826,-500.0,0.00017721,2]
[394649888,1763809840836,-500.0,0.00017721,2]
[394649889,1763809840845,-500.0,0.00017721,2]
[394649890,1763809840854,-603.58,0.00017721,2]
[394649891,1763809840867,-500.0,0.00017721,2]
[394649892,1763809840876,-500.0,0.00017721,2]
[394649893,1763809840885,-500.0,0.00017721,2]
[394649894,1763809840894,-540.19,0.00017721,2]
[394649895,1763809840903,-500.0,0.00017721,2]
[394649896,1763809840912,-500.0,0.00017721,2]
[394649897,1763809840922,-500.0,0.00017721,2]
[394649898,1763809840932,-500.0,0.00017808,2]
[394649899,1763809840942,-500.0,0.00017808,2]
[394649900,1763809840954,-500.0,0.00017808,2]
[394649901,1763809840963,-500.0,0.00017808,2]
[394649902,1763809840973,-500.0,0.00017808,2]
[394649903,1763809840982,-287.52438922,0.00017808,2]
[394649904,1763809840993,-500.0,0.00017808,2]
[394649905,1763809841002,-500.0,0.00017808,2]
[394649906,1763809841011,-607.58,0.00017808,2]
[394649907,1763809841021,-533.32180227,0.00017808,2]
[394649908,1763809841030,-500.0,0.00017808,2]
[394649909,1763809841039,-530.35,0.00017808,2]
[394649910,1763809841048,-500.0,0.00017808,2]
[394649911,1763809841057,-620.87,0.00017808,2]
[394649912,1763809841066,-641.27,0.00017808,2]
[394649913,1763809841075,-500.0,0.00017808,2]
[394649914,1763809841084,-500.0,0.00017808,2]
[394649915,1763809841094,-500.0,0.00017808,2]
[394649916,1763809841103,-550.28,0.00017808,2]
[394649917,1763809841115,-649.3,0.00017808,2]
[394649918,1763809841124,-500.0,0.00017808,2]
[394649919,1763809841133,-500.0,0.00017808,2]
[394649920,1763809841142,-500.0,0.00017808,2]
[394649921,1763809841151,-500.0,0.00017808,2]
[394649922,1763809841160,-500.0,0.00017808,2]
[394649923,1763809841169,-500.0,0.00017808,2]
[394649924,1763809841179,-500.0,0.00017808,2]
[394649925,1763809841187,-2259.16,0.00017808,2]
[394649926,1763809841197,-500.0,0.00017808,2]
[394649927,1763809841206,-667.57,0.00017808,2]
[394649928,1763809841215,-500.0,0.00017808,2]
[394649929,1763809841224,-185.88832771,0.00017808,2]
[394649930,1763809841233,-644.26,0.00017808,2]
[394649931,1763809841245,-500.0,0.00017808,2]
[394649932,1763809841254,-500.0,0.00017995,2]
[394649933,1763809841263,-500.0,0.00017995,2]
[394649934,1763809841272,-500.0,0.00017995,2]
[394649935,1763809841281,-500.0,0.00017995,2]
[394649936,1763809841290,-603.58,0.00017995,2]
[394649937,1763809841299,-500.0,0.00017995,2]
[394649938,1763809841308,-500.0,0.00017995,2]
[394649939,1763809841317,-500.0,0.00017995,2]
[394649940,1763809841326,-540.19,0.00017995,2]
[394649941,1763809841335,-500.0,0.00017995,2]
[394649942,1763809841344,-151.32057298,0.00017995,2]
[394649943,1763809841353,-451536.27309001,0.00018,2]
[394649944,1763809841500,-3127.21313693,0.00018,2]
[394649945,1763809841512,-24344.8347668,0.00018,2]
[394649947,1763809843344,-186.75324458,0.00017554,2]
[394649948,1763809843354,-500.0,0.00017554,2]
[394649949,1763809843365,-4759.92719447,0.00018,2]
[394649950,1763809844087,-11166.11198842,0.00018,2]
[394649951,1763809844196,-713.13,0.00018,2]
[394649960,1763809845733,-879.71652175,0.00018,2]
[394649961,1763809845893,-20712.43838855,0.00018,2]
[394649962,1763809845905,-27222.94472366,0.00018,2]
[394649963,1763809845916,-167566.0,0.00018,2]
[394649964,1763809845927,-29415.62555829,0.00018,2]
[394649965,1763809845938,-87697.1497802,0.00018,2]
[394649966,1763809845951,-35747.46014068,0.00018,2]
[394649972,1763810957523,495.33,0.00013699,2]
[394649995,1763811032034,-166.66,0.00015263,2]
[394649996,1763811032044,-166.66,0.00015584,2]
[394649997,1763811032054,-166.66,0.00015906,2]
[394649998,1763811032063,-1102.64797971,0.00016067,2]
[394649999,1763811032075,-466.29434677,0.00016067,2]
[394650000,1763811032087,-31.22767352,0.00016067,2]
[394650002,1763811032096,-1000.0,0.00016099,2]
[394650004,1763811032106,-162.36265995,0.00016173,2]
[394650006,1763811032116,-308.40023112,0.00016173,2]
[394650007,1763811032127,-1713.86045464,0.00016173,2]
[394650008,1763811032136,-166.66,0.00016227,2]
[394650009,1763811032146,-300.0,0.00016236,2]
[394650010,1763811032155,-300.0,0.00016236,2]
[394650011,1763811032165,-1200.0,0.00016236,2]
[394650012,1763811032174,-179.44264723,0.00016237,2]
[394650013,1763811032185,-334.07577019,0.00016237,2]
[394650014,1763811032195,-500.0,0.00016237,2]
[394650015,1763811032204,-295.0985093,0.00016237,2]
[394650016,1763811032213,-320.28617443,0.00016237,2]
[394650017,1763811032229,-179.71382557,0.00016237,2]
[394650018,1763811032238,-500.0,0.00016237,2]
[394650019,1763811032247,-408.58924515,0.00016237,2]
[394650020,1763811032256,-1000.0,0.00016238,2]
[394650021,1763811032266,-6326.14692928,0.00016238,2]
[394650022,1763811032277,-1795.22834089,0.00016238,2]
[394650023,1763811032288,-1868.08198722,0.00016238,2]
[394650024,1763811032299,-1111.13738673,0.00016238,2]
[394650025,1763811037900,-478.37891291,0.00016238,2]
[394650026,1763811037911,-5004.93507344,0.00016238,2]
[394650027,1763811037956,-1476.42,0.00016238,2]
[394650028,1763811037967,-10992.39539457,0.00016238,2]
[394650029,1763811037978,-10507.07940039,0.00016238,2]
[394650030,1763811037989,-1120.43290127,0.00016238,2]
[394650031,1763811038012,-351.88118535,0.00016238,2]
[394650032,1763811038022,-3880.53334981,0.00016238,2]
[394650033,1763811038035,-499.98868071,0.00016238,2]
[394650034,1763811038047,-4141.776292,0.00016238,2]
[394650035,1763811038058,-619.3089963,0.00016238,2]
[394650036,1763811038068,-7477.4,0.00016238,2]
[394650076,1763811039857,-803.64705105,0.00016238,2]
[394650077,1763811039868,-421.59207175,0.00016238,2]
[394650078,1763811039879,-481.0019925,0.00016238,2]
[394650079,1763811039912,-263.09305586,0.00016238,2]
[394650080,1763811040019,-4012.1106964,0.00016238,2]
[394650081,1763811040773,-9360.27864207,0.00016238,2]
[394650082,1763811040784,-50817.105491,0.00016238,2]
[394650083,1763811040795,-486429.58218823,0.00016238,2]
[394650088,1763811044105,-422.57944629,0.00016238,2]
[394650089,1763811044116,-295.38614182,0.00016238,2]
[394650090,1763811044131,-729.36723541,0.00016238,2]
[394650120,1763811046137,-1299.08534569,0.00016238,2]
[394650121,1763811046147,-986.89522002,0.00016238,2]
[394650142,1763811690285,419.58,7.854e-05,2]
[394650143,1763811690494,419.58,8.267e-05,2]
[394650144,1763811690697,419.58,8.681e-05,2]
[394650145,1763811690890,419.58,9.094e-05,2]
[394650146,1763811691118,419.58,9.507e-05,2]
[394650147,1763811691317,419.58,9.921e-05,2]
[394650148,1763811691535,419.58,0.00010334,2]
[394650149,1763811691736,419.58,0.00010747,2]
[394650150,1763811691926,419.58,0.00011161,2]
[394650151,1763811692129,419.58,0.00011574,2]
[394650152,1763811692318,419.58,0.00011988,2]
[394650153,1763811692509,419.58,0.00012401,2]
[394650154,1763811692716,419.58,0.00012814,2]
[394650155,1763811692916,419.58,0.00013228,2]
[394650157,1763811693333,419.58,0.00013641,2]
[394650158,1763811693521,419.58,0.00014054,2]
[394650159,1763811693717,419.58,0.00014468,2]
[394650160,1763811693926,419.58,0.00014881,2]
[394650161,1763811799477,200.0,0.00014762,2]
[394650178,1763812209039,471.63,0.00019178,30]
[394650180,1763812231964,-419.58,0.00015295,2]
[394650181,1763812231973,-419.58,0.00015708,2]
[394650182,1763812231986,-999.0,0.00015871,3]
[394650183,1763812231996,-1600.0,0.00015994,2]
[394650184,1763812232005,-1082.06813377,0.00016038,2]
[394650185,1763812232015,-179.0,0.00016071,2]
[394650186,1763812232024,-300.0,0.00016071,2]
[394650187,1763812232033,-1820.03461713,0.00016072,2]
[394650188,1763812232043,-829.06514013,0.00016072,2]
[394650189,1763812232054,-530.77777805,0.00016072,2]
[394650190,1763812232066,-942.65937223,0.00016072,2]
[394650191,1763812232075,-177.60549353,0.00016072,2]
[394650192,1763812232084,-125.75244461,0.00016092,2]
[394650193,1763812232096,-250.0,0.00016092,2]
[394650194,1763812232107,-354.50355539,0.00016092,2]
[394650195,1763812232116,-41.59459968,0.00016137,2]
[394650196,1763812232127,-458.40540032,0.00016137,2]
[394650197,1763812232136,-406.56895651,0.00016137,2]
[394650198,1763812232146,-233.85303913,0.00016137,2]
[394650199,1763812232156,-564.11572434,0.00016137,2]
[394650200,1763812232166,-1082.06813376,0.00016138,2]
[394650201,1763812232175,-74610.02452143,0.00016138,2]
[394650202,1763812232186,-576.88174643,0.00016138,2]
[394650203,1763812232197,-1400.0,0.00016138,2]
[394650204,1763812232208,-410.433,0.00016138,2]
[394650205,1763812232219,-73058.05756999,0.00016138,2]
[394650206,1763812232231,-803.67,0.00016138,2]
[394650248,1763812237941,-735.85953622,0.00016138,2]
[394650249,1763812238050,-20505.23757429,0.00016138,2]
[394650250,1763812238061,-3869.63070379,0.00016138,2]
[394650281,1763812239988,-1645.15458143,0.00016138,2]
[394650282,1763812240071,-366431.16150287,0.00016138,2]
[394650283,1763812240148,-500.0,0.00016138,2]
[394650284,1763812240159,-4268.94449612,0.00016138,2]
[394650285,1763812240201,-10253.09642756,0.00016138,2]
[394650286,1763812240256,-18492.04635029,0.00016138,2]
[394650287,1763812240267,-844.27,0.00016138,2]
[394650288,1763812240278,-1372.25000002,0.00016138,2]
[394650289,1763812240289,-446.94398386,0.00016138,2]
[394650290,1763812240300,-2072.05180528,0.00016138,2]
[394650291,1763812240310,-3441.90960667,0.00016138,2]
[394650292,1763812240362,-2550.40170955,0.00016138,2]
[394650293,1763812240373,-564.11572434,0.00016138,2]
[394650294,1763812240384,-144161.34335986,0.00016138,2]
[394650295,1763812240394,-281.96,0.00016172,2]
[394650296,1763812240403,-13421.0058,0.00016173,2]
[394650297,1763812240412,-265.96,0.00016228,2]
[394650298,1763812240425,-151.0,0.00016228,2]
[394650299,1763812240436,-151.0,0.00016228,2]
[394650300,1763812240447,-151.0,0.00016228,2]
[394650301,1763812240455,-151.0,0.00016228,2]
[394650302,1763812240465,-151.0,0.00016228,2]
[394650303,1763812240474,-151.0,0.00016228,2]
[394650304,1763812240483,-151.0,0.00016228,2]
[394650305,1763812240492,-151.0,0.00016228,2]
[394650306,1763812240501,-151.0,0.00016228,2]
[394650307,1763812240513,-151.0,0.00016228,2]
[394650308,1763812240523,-151.0,0.00016228,2]
[394650309,1763812240532,-151.0,0.00016228,2]
[394650310,1763812240541,-151.0,0.00016228,2]
[394650311,1763812240550,-151.0,0.00016228,2]
[394650312,1763812240559,-151.0,0.00016228,2]
[394650313,1763812240573,-151.0,0.00016228,2]
[394650314,1763812240582,-151.0,0.00016228,2]
[394650315,1763812240591,-151.0,0.00016228,2]
[394650316,1763812240601,-151.0,0.00016228,2]
[394650317,1763812240610,-151.0,0.00016228,2]
[394650318,1763812240619,-659.22168284,0.00016237,2]
[394650319,1763812240627,-1649.9325729,0.00016237,2]
[394650320,1763812240636,-37488.3032818,0.00016237,2]
[394650321,1763812240645,-196.77454208,0.00016237,2]
[394650322,1763812240654,-1500.0,0.0001632,2]
[394650323,1763812240663,-362.22986799,0.00016337,2]
[394650324,1763812240672,-604.30481114,0.00016337,2]
[394650325,1763812240681,-157.68004741,0.00016337,2]
[394650326,1763812240690,-285.27774158,0.00016337,2]
[394650327,1763812240699,-500.0,0.00016337,2]
[394650328,1763812240708,-500.0,0.00016337,2]
[394650329,1763812240718,-500.0,0.00016337,2]
[394650330,1763812240727,-596.30435792,0.00016337,2]
[394650331,1763812240736,-150.0,0.00016428,2]
[394650332,1763812240746,-150.0,0.00016428,2]
[394650333,1763812240755,-150.0,0.00016428,2]
[394650334,1763812240764,-150.0,0.00016428,2]
[394650335,1763812240773,-500.0,0.00016428,2]
[394650336,1763812240782,-150.0,0.00016428,2]
[394650337,1763812240793,-150.0,0.00016428,2]
[394650338,1763812240803,-150.0,0.00016428,2]
[394650339,1763812240812,-150.0,0.00016428,2]
[394650340,1763812240821,-150.0,0.00016428,2]
[394650341,1763812240831,-150.0,0.00016428,2]
[394650342,1763812240839,-150.0,0.00016428,2]
[394650343,1763812240848,-500.0,0.00016438,2]
[394650344,1763812240857,-500.0,0.00016438,2]
[394650345,1763812240867,-500.0,0.00016438,2]
[394650346,1763812240876,-500.0,0.00016438,2]
[394650347,1763812240886,-500.0,0.00016438,2]
[394650348,1763812240895,-500.0,0.00016438,2]
[394650349,1763812240904,-500.0,0.00016438,2]
[394650350,1763812240916,-500.0,0.00016438,2]
[394650351,1763812240926,-632.64289027,0.00016438,2]
[394650352,1763812240936,-500.0,0.00016438,2]
[394650353,1763812240945,-500.0,0.00016438,2]
[394650354,1763812240954,-500.0,0.00016438,2]
[394650355,1763812240963,-500.0,0.00016438,2]
[394650356,1763812240972,-634.81307322,0.00016438,2]
[394650357,1763812240982,-245.21398515,0.00016438,2]
[394650358,1763812240991,-500.0,0.00016438,2]
[394650359,1763812241000,-500.0,0.00016438,2]
[394650360,1763812241009,-500.0,0.00016438,2]
[394650361,1763812241019,-500.0,0.00016438,2]
[394650362,1763812241028,-500.0,0.00016438,2]
[394650363,1763812241038,-500.0,0.00016438,2]
[394650364,1763812241048,-500.0,0.00016438,2]
[394650365,1763812241059,-500.0,0.00016438,2]
[394650366,1763812241068,-500.0,0.00016438,2]
[394650367,1763812241077,-500.0,0.00016438,2]
[394650368,1763812241086,-500.0,0.00016438,2]
[394650369,1763812241095,-500.0,0.00016438,2]
[394650370,1763812241105,-500.0,0.00016438,2]
[394650371,1763812241114,-500.0,0.00016438,2]
[394650372,1763812241123,-500.0,0.00016438,2]
[394650373,1763812241136,-1073.35,0.00016438,2]
[394650374,1763812241145,-265.96,0.00016502,2]
[394650375,1763812241155,-166.66,0.00016549,2]
[394650376,1763812241165,-250.0,0.00016553,2]
[394650377,1763812241174,-150.0,0.00016565,2]
[394650378,1763812241183,-150.0,0.00016565,2]
[394650379,1763812241194,-500.0,0.00016565,2]
[394650380,1763812241203,-150.0,0.00016565,2]
[394650381,1763812241212,-150.0,0.00016565,2]
[394650382,1763812241221,-150.0,0.00016565,2]
[394650383,1763812241231,-500.0,0.00016575,2]
[394650384,1763812241244,-16282.5258,0.00016612,2]
[394650385,1763812241254,-200.0,0.00016702,2]
[394650386,1763812241265,-200.0,0.00016702,2]
[394650387,1763812241275,-500.0,0.00016702,2]
[394650388,1763812241286,-150.0,0.00016712,2]
[394650389,1763812241297,-500.0,0.00016712,2]
[394650390,1763812241308,-500.0,0.00016712,2]
[394650391,1763812241319,-500.0,0.00016712,2]
[394650392,1763812241329,-500.0,0.00016712,2]
[394650393,1763812241339,-500.0,0.00016712,2]
[394650394,1763812241349,-500.0,0.00016712,2]
[394650395,1763812241359,-444.58401631,0.00016712,2]
[394650403,1763812243647,-500.0,0.00016438,2]
[394650404,1763812243658,-55.41598369,0.00016712,2]
[394650405,1763812243668,-500.0,0.00016712,2]
[394650406,1763812243679,-500.0,0.00016712,2]
[394650407,1763812243689,-500.0,0.00016712,2]
[394650408,1763812243699,-500.0,0.00016712,2]
[394650409,1763812243710,-500.0,0.00016712,2]
[394650410,1763812243720,-500.0,0.00016712,2]
[394650411,1763812243731,-527.56,0.00016712,2]
[394650412,1763812243740,-186.82,0.00016712,2]
[394650413,1763812243750,-421.03,0.00016712,2]
[394650414,1763812243760,-190.84,0.00016712,2]
[394650415,1763812243770,-1820.03461712,0.00016726,2]
[394650416,1763812243781,-2302.50229032,0.00016726,2]
[394650417,1763812243793,-265.96,0.00016776,2]
[394650418,1763812243805,-300.0,0.00016824,2]
[394650419,1763812243816,-500.0,0.00016839,2]
[394650420,1763812243826,-166.66,0.0001687,2]
[394650421,1763812243838,-2500.0,0.00016886,2]
[394650422,1763812243849,-500.0,0.00016906,2]
[394650423,1763812243859,-501.28524777,0.00016906,2]
[394650424,1763812243871,-500.74029045,0.00016906,2]
[394650425,1763812243881,-500.0,0.00016969,2]
[394650426,1763812243891,-495.51149175,0.00016969,2]
[394650427,1763812243902,-500.0,0.00016969,2]
[394650428,1763812243913,-500.0,0.00016969,2]
[394650429,1763812243923,-500.0,0.00016969,2]
[394650430,1763812243933,-300.0,0.00016976,2]
[394650431,1763812243943,-500.0,0.00016985,2]
[394650432,1763812243953,-496.62764038,0.00016986,2]
[394650433,1763812243963,-500.0,0.00016986,2]
[394650434,1763812243973,-500.0,0.00016986,2]
[394650435,1763812243983,-500.0,0.00016986,2]
[394650436,1763812243993,-500.0,0.00016986,2]
[394650437,1763812244003,-500.0,0.00016986,2]
[394650438,1763812244012,-500.0,0.00016986,2]
[394650439,1763812244022,-500.0,0.00016986,2]
[394650440,1763812244032,-500.0,0.00016986,2]
[394650441,1763812244041,-500.0,0.00016986,2]
[394650442,1763812244051,-500.0,0.00016986,2]
[394650443,1763812244062,-500.0,0.00016986,2]
[394650444,1763812244073,-500.0,0.00016986,2]
[394650445,1763812244084,-500.0,0.00016986,2]
[394650446,1763812244095,-533.82519856,0.00016999,2]
[394650447,1763812244108,-400.0,0.00016999,2]
[394650448,1763812244118,-500.0,0.00016999,2]
[394650449,1763812244128,-500.0,0.00016999,2]
[394650450,1763812244139,-500.0,0.00016999,2]
[394650451,1763812244149,-500.0,0.00016999,2]
[394650452,1763812244159,-500.0,0.00016999,2]
[394650453,1763812244170,-400.0,0.00016999,2]
[394650454,1763812244180,-500.0,0.00016999,2]
[394650455,1763812244190,-400.0,0.00016999,2]
[394650456,1763812244200,-500.0,0.00016999,2]
[394650457,1763812244210,-500.0,0.00016999,2]
[394650458,1763812244220,-500.0,0.00016999,2]
[394650459,1763812244231,-500.0,0.00016999,2]
[394650460,1763812244241,-500.0,0.00016999,2]
[394650461,1763812244252,-500.0,0.00016999,2]
[394650462,1763812244262,-500.0,0.00016999,2]
[394650463,1763812244272,-500.0,0.00016999,2]
[394650464,1763812244283,-500.0,0.00016999,2]
[394650465,1763812244293,-500.0,0.00016999,2]
[394650466,1763812244303,-500.0,0.00016999,2]
[394650467,1763812244313,-500.0,0.00016999,2]
[394650468,1763812244323,-500.0,0.00016999,2]
[394650469,1763812244333,-500.0,0.00016999,2]
[394650470,1763812244343,-500.0,0.00016999,2]
[394650471,1763812244355,-500.0,0.00016999,2]
[394650472,1763812244365,-500.0,0.00016999,2]
[394650473,1763812244374,-427.31571958,0.00016999,2]
[394650474,1763812244398,-72.68428042,0.00016999,2]
[394650475,1763812244408,-500.0,0.00016999,2]
[394650476,1763812244418,-76.25423955,0.00016999,2]
[394650477,1763812244432,-423.74576045,0.00016999,2]
[394650478,1763812244442,-43.04784885,0.00016999,2]
[394650479,1763812244453,-456.95215115,0.00016999,2]
[394650480,1763812244463,-500.0,0.00016999,2]
[394650481,1763812244473,-500.0,0.00016999,2]
[394650482,1763812244483,-500.0,0.00016999,2]
[394650483,1763812244493,-500.0,0.00016999,2]
[394650484,1763812244503,-500.0,0.00016999,2]
[394650485,1763812244513,-500.0,0.00016999,2]
[394650486,1763812244523,-500.0,0.00016999,2]
[394650487,1763812244532,-500.0,0.00016999,2]
[394650488,1763812244541,-500.0,0.00016999,2]
[394650489,1763812244551,-500.0,0.00016999,2]
[394650490,1763812244562,-500.0,0.00016999,2]
[394650491,1763812244572,-484.73002287,0.00016999,2]
[394650492,1763812244582,-500.0,0.00016999,2]
[394650493,1763812244591,-500.0,0.00016999,2]
[394650494,1763812244602,-500.0,0.00016999,2]
[394650495,1763812244612,-500.0,0.00016999,2]
[394650496,1763812244623,-500.0,0.00016999,2]
[394650497,1763812244632,-500.0,0.00016999,2]
[394650498,1763812244643,-500.0,0.00016999,2]
[394650499,1763812244655,-500.0,0.00016999,2]
[394650500,1763812244666,-500.0,0.00016999,2]
[394650501,1763812244675,-500.0,0.00016999,2]
[394650502,1763812244686,-271.27939886,0.00016999,2]
[394650503,1763812244696,-495.0,0.00016999,2]
[394650504,1763812244707,-405.00327295,0.00016999,2]
[394650505,1763812244718,-500.0,0.00016999,2]
[394650506,1763812244729,-452.63554473,0.00016999,2]
[394650507,1763812244739,-500.0,0.00016999,2]
[394650508,1763812244749,-500.0,0.00016999,2]
[394650509,1763812244760,-507.77972796,0.00016999,2]
[394650510,1763812244771,-500.0,0.00016999,2]
[394650511,1763812244782,-500.0,0.00016999,2]
[394650512,1763812244794,-500.0,0.00016999,2]
[394650513,1763812244805,-500.0,0.00016999,2]
[394650514,1763812244818,-500.0,0.00016999,2]
[394650515,1763812244832,-500.0,0.00016999,2]
[394650516,1763812244842,-500.0,0.00016999,2]
[394650517,1763812244853,-500.0,0.00016999,2]
[394650518,1763812244863,-500.0,0.00016999,2]
[394650519,1763812244876,-500.0,0.00016999,2]
[394650520,1763812244888,-500.0,0.00016999,2]
[394650521,1763812244898,-500.0,0.00016999,2]
[394650522,1763812244908,-500.0,0.00016999,2]
[394650523,1763812244918,-500.0,0.00016999,2]
[394650524,1763812244928,-500.0,0.00016999,2]
[394650525,1763812244938,-367.86,0.00016999,2]
[394650526,1763812244949,-500.0,0.00016999,2]
[394650527,1763812244960,-454.28843061,0.00016999,2]
[394650528,1763812244972,-500.0,0.00016999,2]
[394650529,1763812244982,-500.0,0.00016999,2]
[394650530,1763812244993,-1694.37,0.00016999,2]
[394650531,1763812245003,-500.0,0.00016999,2]
[394650532,1763812245014,-500.0,0.00016999,2]
[394650533,1763812245026,-500.0,0.00016999,2]
[394650534,1763812245037,-500.68,0.00016999,2]
[394650535,1763812245048,-500.0,0.00016999,2]
[394650536,1763812245059,-7947.224141,0.00016999,2]
[394650537,1763812245069,-458.165983,0.00016999,2]
[394650538,1763812245079,-3023.932427,0.00016999,2]
[394650539,1763812245088,-7010.040139,0.00016999,2]
[394650540,1763812245098,-8213.627726,0.00016999,2]
[394650541,1763812245107,-506.97795181,0.00016999,2]
[394650542,1763812245116,-500.0,0.00016999,2]
[394650543,1763812245126,-500.0,0.00016999,2]
[394650544,1763812245136,-315.52391769,0.00016999,2]
[394650545,1763812245145,-33990.05126678,0.00017,2]
[394650546,1763812245157,-28521.64568787,0.00017,2]
[394650547,1763812245170,-3411.37260033,0.00017,2]
[394650549,1763812245182,-3681.900821,0.00017,2]
[394650560,1763812246076,-11533.12725657,0.00017,2]
[394650561,1763812246089,-474.4368,0.00017,2]
[394650562,1763812246102,-52377.51683423,0.00017,2]
[394650563,1763812246111,-2000.0,0.00017,2]
[394650564,1763812246121,-151.0,0.00017,2]
[394650565,1763812246132,-151.0,0.00017,2]